[Event "*** SCC Grand Prix: Titled Tuesday Blitz"]
[Site "Chess.com"]
[Date "2020.07.21"]
[Round "2"]
[White "Oglob71"]
[Black "S2PAc"]
[Result "0-1"]
[WhiteElo "2514"]
[BlackElo "2789"]
[TimeControl "180+1"]
[EndTime "10:18:39 PDT"]
[Termination "S2PAc won by resignation"]

1. d4 {[%clk 0:03:00.9]} 1... Nf6 {[%clk 0:02:59.8]} 2. Nf3 {[%clk 0:03:00.6]}
2... g6 {[%clk 0:02:55.4]} 3. c4 {[%clk 0:03:00]} 3... Bg7 {[%clk 0:02:55.6]} 4.
Nc3 {[%clk 0:03:00.4]} 4... O-O {[%clk 0:02:53]} 5. Bg5 {[%clk 0:02:56.7]} 5...
c6 {[%clk 0:02:35]} 6. e3 {[%clk 0:02:50.8]} 6... d6 {[%clk 0:02:26.3]} 7. Be2
{[%clk 0:02:46.8]} 7... Nbd7 {[%clk 0:02:26.3]} 8. h3 {[%clk 0:02:46.1]} 8...
Qc7 {[%clk 0:02:20.2]} 9. Bf4 {[%clk 0:02:44.3]} 9... e5 {[%clk 0:02:18.3]} 10.
Bh2 {[%clk 0:02:44.3]} 10... Re8 {[%clk 0:02:11.9]} 11. O-O {[%clk 0:02:43.9]}
11... b6 {[%clk 0:02:00.3]} 12. Qc2 {[%clk 0:02:43.4]} 12... Bb7 {[%clk
0:02:00.1]} 13. Rfd1 {[%clk 0:02:43.4]} 13... h6 {[%clk 0:01:57.4]} 14. Rac1
{[%clk 0:02:42.8]} 14... Nf8 {[%clk 0:01:47.6]} 15. b4 {[%clk 0:02:35.1]} 15...
a5 {[%clk 0:01:16.2]} 16. b5 {[%clk 0:02:32]} 16... c5 {[%clk 0:01:16.7]} 17.
dxe5 {[%clk 0:02:29.7]} 17... dxe5 {[%clk 0:01:17.6]} 18. Nd5 {[%clk 0:02:25.9]}
18... Nxd5 {[%clk 0:01:17.3]} 19. cxd5 {[%clk 0:02:25.4]} 19... Nd7 {[%clk
0:01:13]} 20. Bc4 {[%clk 0:02:17.5]} 20... Qd8 {[%clk 0:01:07.2]} 21. Nd2 {[%clk
0:02:08.7]} 21... f5 {[%clk 0:01:05.3]} 22. d6+ {[%clk 0:02:04.6]} 22... Kh7
{[%clk 0:01:04.9]} 23. Bf7 {[%clk 0:02:04.8]} 23... Rf8 {[%clk 0:01:04.2]} 24.
Be6 {[%clk 0:02:02.1]} 24... Qe8 {[%clk 0:00:54.5]} 25. Qb3 {[%clk 0:01:56.2]}
25... a4 {[%clk 0:00:41.3]} 26. Qc4 {[%clk 0:01:56.2]} 26... Rd8 {[%clk
0:00:23]} 27. Nb1 {[%clk 0:01:49.4]} 27... Rf6 {[%clk 0:00:21]} 28. Bd5 {[%clk
0:01:47.5]} 28... Bxd5 {[%clk 0:00:14.7]} 29. Rxd5 {[%clk 0:01:47.3]} 29... Qf7
{[%clk 0:00:14.4]} 30. Rcd1 {[%clk 0:01:39.5]} 30... Rxd6 {[%clk 0:00:14.3]} 31.
Na3 {[%clk 0:01:34.1]} 31... Rxd5 {[%clk 0:00:12.1]} 32. Qxd5 {[%clk 0:01:34.4]}
32... Qxd5 {[%clk 0:00:09.6]} 33. Rxd5 {[%clk 0:01:33.6]} 33... Bf6 {[%clk
0:00:10.5]} 34. Nc4 {[%clk 0:01:32.3]} 34... Nf8 {[%clk 0:00:08.9]} 35. Rxd8
{[%clk 0:01:30.9]} 35... Bxd8 {[%clk 0:00:09.8]} 36. Bxe5 {[%clk 0:01:29.6]}
36... Nd7 {[%clk 0:00:10]} 37. f4 {[%clk 0:01:00.7]} 37... Kg8 {[%clk
0:00:10.2]} 38. Kf2 {[%clk 0:01:00.5]} 38... Kf7 {[%clk 0:00:10.6]} 39. Kf3
{[%clk 0:01:00.1]} 39... Ke6 {[%clk 0:00:11]} 40. e4 {[%clk 0:01:00.6]} 40... h5
{[%clk 0:00:04.8]} 41. g4 {[%clk 0:00:58.1]} 41... hxg4+ {[%clk 0:00:04.8]} 42.
hxg4 {[%clk 0:00:58.5]} 42... fxg4+ {[%clk 0:00:05.7]} 43. Kxg4 {[%clk
0:00:58.3]} 43... Bf6 {[%clk 0:00:06.6]} 44. Bc7 {[%clk 0:00:55.1]} 44... Bd4
{[%clk 0:00:06]} 45. Nxb6 {[%clk 0:00:47.5]} 45... Nf6+ {[%clk 0:00:06.2]} 46.
Kf3 {[%clk 0:00:46.9]} 46... a3 {[%clk 0:00:06.2]} 47. Nc4 {[%clk 0:00:46.5]}
47... Bb2 {[%clk 0:00:06.4]} 48. b6 {[%clk 0:00:45.4]} 48... Kd7 {[%clk
0:00:06.8]} 49. Be5 {[%clk 0:00:42.6]} 49... Bxe5 {[%clk 0:00:06.3]} 50. Nxe5+
{[%clk 0:00:41.8]} 50... Kc8 {[%clk 0:00:06.6]} 51. Nxg6 {[%clk 0:00:41.9]}
51... Kb7 {[%clk 0:00:07.2]} 52. e5 {[%clk 0:00:41.9]} 52... Nd5 {[%clk
0:00:07.2]} 53. Ke4 {[%clk 0:00:41.7]} 53... Nc3+ {[%clk 0:00:07.1]} 54. Kd3
{[%clk 0:00:42]} 54... Nxa2 {[%clk 0:00:08]} 55. f5 {[%clk 0:00:34.3]} 55...
Nb4+ {[%clk 0:00:08.2]} 56. Kc3 {[%clk 0:00:33.2]} 56... a2 {[%clk 0:00:09.1]}
57. Kb2 {[%clk 0:00:33]} 57... c4 {[%clk 0:00:10]} 58. Nf4 {[%clk 0:00:27.9]}
58... Nd3+ {[%clk 0:00:09.9]} 59. Nxd3 {[%clk 0:00:27.8]} 59... cxd3 {[%clk
0:00:10.8]} 60. e6 {[%clk 0:00:27.3]} 60... a1=Q+ {[%clk 0:00:10.6]} 61. Kxa1
{[%clk 0:00:26.6]} 61... d2 {[%clk 0:00:11.5]} 62. Kb2 {[%clk 0:00:27.2]} 62...
d1=Q {[%clk 0:00:12.4]} 63. f6 {[%clk 0:00:27.6]} 63... Qe2+ {[%clk 0:00:12.5]}
64. Kb3 {[%clk 0:00:26.6]} 64... Qxe6+ {[%clk 0:00:13.4]} 0-1

[Event "*** SCC Grand Prix: Titled Tuesday Blitz"]
[Site "Chess.com"]
[Date "2020.07.21"]
[Round "2"]
[White "Fandorine"]
[Black "MomchilPetkov"]
[Result "1-0"]
[WhiteElo "2940"]
[BlackElo "2587"]
[TimeControl "180+1"]
[EndTime "10:18:40 PDT"]
[Termination "Fandorine won by resignation"]

1. e4 {[%clk 0:03:00.9]} 1... c5 {[%clk 0:02:57.1]} 2. Nf3 {[%clk 0:02:59.7]}
2... d6 {[%clk 0:02:52.6]} 3. c3 {[%clk 0:02:57.9]} 3... Nf6 {[%clk 0:02:48.7]}
4. g3 {[%clk 0:02:57.8]} 4... Bd7 {[%clk 0:02:41.5]} 5. e5 {[%clk 0:02:40.9]}
5... dxe5 {[%clk 0:02:39.3]} 6. Nxe5 {[%clk 0:02:41.8]} 6... Bc6 {[%clk
0:02:05.8]} 7. Nxc6 {[%clk 0:02:41.4]} 7... Qd5 {[%clk 0:02:02.7]} 8. Nxb8
{[%clk 0:02:03.4]} 8... Qxh1 {[%clk 0:02:01.4]} 9. Qa4+ {[%clk 0:02:01.6]} 9...
Kd8 {[%clk 0:02:01.5]} 10. d3 {[%clk 0:01:53.9]} 10... Rxb8 {[%clk 0:01:54]} 11.
Qxa7 {[%clk 0:01:53.6]} 11... Rc8 {[%clk 0:01:52.6]} 12. Na3 {[%clk 0:01:33.6]}
12... e6 {[%clk 0:01:13.6]} 13. Nc4 {[%clk 0:01:28.5]} 13... Ke8 {[%clk
0:01:00.7]} 14. Be3 {[%clk 0:01:15.3]} 14... Qc6 {[%clk 0:00:57.3]} 15. Na5
{[%clk 0:01:08.8]} 15... Qa6 {[%clk 0:00:52.4]} 16. Qxa6 {[%clk 0:00:56.5]}
16... bxa6 {[%clk 0:00:52]} 17. d4 {[%clk 0:00:57]} 17... Nd5 {[%clk 0:00:49.9]}
18. Bxa6 {[%clk 0:00:55.5]} 18... Ra8 {[%clk 0:00:44.1]} 19. Bb5+ {[%clk
0:00:54.4]} 19... Ke7 {[%clk 0:00:44.5]} 20. Nb3 {[%clk 0:00:46.9]} 20... Nxe3
{[%clk 0:00:40.3]} 21. fxe3 {[%clk 0:00:47.8]} 21... cxd4 {[%clk 0:00:32.7]} 22.
exd4 {[%clk 0:00:48.7]} 22... h5 {[%clk 0:00:31]} 23. Ke2 {[%clk 0:00:47.7]}
23... h4 {[%clk 0:00:30.7]} 24. g4 {[%clk 0:00:47.9]} 24... Kf6 {[%clk
0:00:23.7]} 25. h3 {[%clk 0:00:47.4]} 25... g5 {[%clk 0:00:20.6]} 26. a4 {[%clk
0:00:43.2]} 26... Bd6 {[%clk 0:00:20.3]} 27. Nd2 {[%clk 0:00:43.5]} 27... Kg6
{[%clk 0:00:18.5]} 28. Bd3+ {[%clk 0:00:40.8]} 28... f5 {[%clk 0:00:16.5]} 29.
Rg1 {[%clk 0:00:27.4]} 29... Kf6 {[%clk 0:00:11.3]} 30. Bc2 {[%clk 0:00:25]}
30... Bf4 {[%clk 0:00:11.4]} 31. Nc4 {[%clk 0:00:21.5]} 31... Rhe8 {[%clk
0:00:10.1]} 32. Nb6 {[%clk 0:00:19.9]} 32... Ra7 {[%clk 0:00:09]} 33. Kf3 {[%clk
0:00:16.5]} 33... Rb8 {[%clk 0:00:09.1]} 34. Nc4 {[%clk 0:00:16.4]} 34... Rc7
{[%clk 0:00:08.1]} 35. b3 {[%clk 0:00:14.3]} 35... Rbc8 {[%clk 0:00:08.5]} 36.
Bd3 {[%clk 0:00:14.3]} 36... Rb8 {[%clk 0:00:08.1]} 37. Rb1 {[%clk 0:00:14.3]}
37... Rcb7 {[%clk 0:00:07.6]} 38. b4 {[%clk 0:00:14.4]} 38... Rc7 {[%clk
0:00:07.2]} 39. a5 {[%clk 0:00:14.4]} 39... Rbc8 {[%clk 0:00:07.5]} 40. a6
{[%clk 0:00:08.5]} 40... Rxc4 {[%clk 0:00:05.5]} 41. Bxc4 {[%clk 0:00:09.4]}
41... Rxc4 {[%clk 0:00:06]} 42. Rb3 {[%clk 0:00:09.9]} 42... Bb8 {[%clk
0:00:04.6]} 43. b5 {[%clk 0:00:09.8]} 43... Ba7 {[%clk 0:00:05]} 44. Ke3 {[%clk
0:00:07.8]} 44... Bb6 {[%clk 0:00:05.2]} 45. Kd3 {[%clk 0:00:07.7]} 45... Ra4
{[%clk 0:00:05.7]} 46. c4 {[%clk 0:00:07.9]} 46... fxg4 {[%clk 0:00:06.2]} 47.
hxg4 {[%clk 0:00:08.8]} 47... h3 {[%clk 0:00:06.7]} 48. c5 {[%clk 0:00:09.3]}
48... h2 {[%clk 0:00:05.9]} 49. Rb1 {[%clk 0:00:09.6]} 49... Bc7 {[%clk
0:00:05.7]} 50. b6 {[%clk 0:00:09.4]} 50... Rxa6 {[%clk 0:00:05.8]} 51. bxc7
{[%clk 0:00:09.6]} 51... Rc6 {[%clk 0:00:06.3]} 52. Rf1+ {[%clk 0:00:06]} 52...
Kg6 {[%clk 0:00:06.1]} 53. Rh1 {[%clk 0:00:06.5]} 53... Rxc7 {[%clk 0:00:06.5]}
54. Rxh2 {[%clk 0:00:06.2]} 54... Rd7 {[%clk 0:00:07.1]} 55. Ke4 {[%clk
0:00:06.3]} 55... Rf7 {[%clk 0:00:06.8]} 56. Rc2 {[%clk 0:00:05.9]} 56... Rf4+
{[%clk 0:00:07]} 57. Ke5 {[%clk 0:00:06.4]} 57... Rxg4 {[%clk 0:00:04.7]} 58. c6
{[%clk 0:00:06.8]} 58... Rg2 {[%clk 0:00:04.3]} 59. Rxg2 {[%clk 0:00:06.1]} 1-0

[Event "*** SCC Grand Prix: Titled Tuesday Blitz"]
[Site "Chess.com"]
[Date "2020.07.21"]
[Round "2"]
[White "GMKrikor"]
[Black "2nd_life"]
[Result "1-0"]
[WhiteElo "2722"]
[BlackElo "2478"]
[TimeControl "180+1"]
[EndTime "10:18:43 PDT"]
[Termination "GMKrikor won on time"]

1. e4 {[%clk 0:03:00.9]} 1... e5 {[%clk 0:02:59.7]} 2. Bc4 {[%clk 0:03:00.1]}
2... Nf6 {[%clk 0:02:59.1]} 3. d3 {[%clk 0:02:59.6]} 3... c6 {[%clk 0:02:58.8]}
4. Nf3 {[%clk 0:02:58.3]} 4... d5 {[%clk 0:02:58.6]} 5. Bb3 {[%clk 0:02:58.3]}
5... Qc7 {[%clk 0:02:56.9]} 6. O-O {[%clk 0:02:54.7]} 6... Be6 {[%clk
0:02:40.9]} 7. exd5 {[%clk 0:02:46.8]} 7... cxd5 {[%clk 0:02:38.8]} 8. Re1
{[%clk 0:02:46.6]} 8... Bd6 {[%clk 0:02:29.2]} 9. Nc3 {[%clk 0:02:40.8]} 9... a6
{[%clk 0:02:24.2]} 10. Ng5 {[%clk 0:02:31]} 10... O-O {[%clk 0:02:07.5]} 11.
Nxe6 {[%clk 0:02:27]} 11... fxe6 {[%clk 0:02:07.5]} 12. g3 {[%clk 0:02:27.2]}
12... Bc5 {[%clk 0:02:00.2]} 13. Qe2 {[%clk 0:02:11.4]} 13... Nc6 {[%clk
0:01:35.8]} 14. Kg2 {[%clk 0:01:54.4]} 14... Rf7 {[%clk 0:01:05.1]} 15. Be3
{[%clk 0:01:26.2]} 15... Nd4 {[%clk 0:00:54.9]} 16. Bxd4 {[%clk 0:01:20.4]}
16... Bxd4 {[%clk 0:00:55.8]} 17. Nd1 {[%clk 0:01:20.3]} 17... Nd7 {[%clk
0:00:41.5]} 18. c3 {[%clk 0:01:17]} 18... Ba7 {[%clk 0:00:40.4]} 19. d4 {[%clk
0:01:02.5]} 19... e4 {[%clk 0:00:35.4]} 20. Ne3 {[%clk 0:01:02.5]} 20... Raf8
{[%clk 0:00:32]} 21. Rf1 {[%clk 0:01:02.6]} 21... Qd6 {[%clk 0:00:24.8]} 22.
Rae1 {[%clk 0:00:46.8]} 22... Rf3 {[%clk 0:00:23.7]} 23. Bd1 {[%clk 0:00:45.7]}
23... Qe7 {[%clk 0:00:14.8]} 24. Qd2 {[%clk 0:00:37.9]} 24... R3f6 {[%clk
0:00:14.6]} 25. f3 {[%clk 0:00:30.1]} 25... exf3+ {[%clk 0:00:11.1]} 26. Rxf3
{[%clk 0:00:31]} 26... Rxf3 {[%clk 0:00:10.4]} 27. Bxf3 {[%clk 0:00:31.9]} 27...
Qd6 {[%clk 0:00:10.6]} 28. Ng4 {[%clk 0:00:28]} 28... Bb8 {[%clk 0:00:08]} 29.
Qg5 {[%clk 0:00:27.1]} 29... Kh8 {[%clk 0:00:04.2]} 30. Bd1 {[%clk 0:00:23.2]}
30... Nf6 {[%clk 0:00:03.9]} 31. Ne5 {[%clk 0:00:22.4]} 31... Nd7 {[%clk
0:00:02.9]} 32. Nd3 {[%clk 0:00:20.6]} 32... Nf6 {[%clk 0:00:02.9]} 33. Bf3
{[%clk 0:00:20.9]} 33... Re8 {[%clk 0:00:03.1]} 34. Nf4 {[%clk 0:00:21.3]} 34...
Qd7 {[%clk 0:00:01.4]} 35. Nd3 {[%clk 0:00:17.2]} 35... Bd6 {[%clk 0:00:01.5]}
36. Re2 {[%clk 0:00:16.4]} 36... Qc7 {[%clk 0:00:02]} 37. Bg4 {[%clk 0:00:16.6]}
37... Nxg4 {[%clk 0:00:01.5]} 38. Qxg4 {[%clk 0:00:17]} 38... Qd7 {[%clk
0:00:02.4]} 39. Re3 {[%clk 0:00:15.8]} 39... h6 {[%clk 0:00:02.2]} 40. Qg6
{[%clk 0:00:15.7]} 40... Re7 {[%clk 0:00:02.4]} 41. Rf3 {[%clk 0:00:15.9]} 41...
Qe8 {[%clk 0:00:02.8]} 42. Qxe8+ {[%clk 0:00:13.1]} 42... Rxe8 {[%clk 0:00:03]}
43. Rf7 {[%clk 0:00:13.8]} 43... Re7 {[%clk 0:00:03.4]} 44. Rxe7 {[%clk
0:00:14.4]} 44... Bxe7 {[%clk 0:00:03.1]} 45. Nf4 {[%clk 0:00:15.3]} 45... Bd6
{[%clk 0:00:02.3]} 46. Nxe6 {[%clk 0:00:15.6]} 46... Kg8 {[%clk 0:00:02.9]} 47.
Kf3 {[%clk 0:00:14.8]} 47... Kf7 {[%clk 0:00:02.9]} 48. Nf4 {[%clk 0:00:15.3]}
48... Bxf4 {[%clk 0:00:03.3]} 49. Kxf4 {[%clk 0:00:16.1]} 49... Kf6 {[%clk
0:00:04]} 50. h3 {[%clk 0:00:07.9]} 50... g5+ {[%clk 0:00:03.8]} 51. Ke3 {[%clk
0:00:07.9]} 51... h5 {[%clk 0:00:03.7]} 52. g4 {[%clk 0:00:06]} 52... h4 {[%clk
0:00:02.8]} 53. Kd3 {[%clk 0:00:05.9]} 53... b5 {[%clk 0:00:02.6]} 54. b3 {[%clk
0:00:06.2]} 54... Ke6 {[%clk 0:00:03.4]} 55. c4 {[%clk 0:00:07.1]} 55... b4
{[%clk 0:00:03.1]} 56. Ke3 {[%clk 0:00:06.5]} 56... Kd6 {[%clk 0:00:03.1]} 57.
cxd5 {[%clk 0:00:05.2]} 57... Kxd5 {[%clk 0:00:03.1]} 58. Kd3 {[%clk 0:00:06.1]}
58... a5 {[%clk 0:00:03.6]} 59. Ke3 {[%clk 0:00:06.6]} 59... a4 {[%clk
0:00:03.1]} 60. bxa4 {[%clk 0:00:05.7]} 1-0

[Event "*** SCC Grand Prix: Titled Tuesday Blitz"]
[Site "Chess.com"]
[Date "2020.07.21"]
[Round "2"]
[White "Fortitudine"]
[Black "731291"]
[Result "0-1"]
[WhiteElo "2294"]
[BlackElo "2618"]
[TimeControl "180+1"]
[EndTime "10:18:43 PDT"]
[Termination "731291 won on time"]

1. d4 {[%clk 0:03:00.9]} 1... Nf6 {[%clk 0:02:54.7]} 2. Nc3 {[%clk 0:02:59.7]}
2... d5 {[%clk 0:02:50]} 3. Bg5 {[%clk 0:02:59]} 3... e6 {[%clk 0:02:49.6]} 4.
e4 {[%clk 0:02:58.5]} 4... dxe4 {[%clk 0:02:48.3]} 5. Nxe4 {[%clk 0:02:59.4]}
5... Be7 {[%clk 0:02:48.1]} 6. Bxf6 {[%clk 0:02:59.6]} 6... Bxf6 {[%clk
0:02:48.6]} 7. Nf3 {[%clk 0:03:00.2]} 7... Nd7 {[%clk 0:02:43.7]} 8. Qd2 {[%clk
0:03:00.2]} 8... O-O {[%clk 0:02:35.5]} 9. O-O-O {[%clk 0:02:59.3]} 9... b6
{[%clk 0:02:32.7]} 10. Bd3 {[%clk 0:02:57.4]} 10... Bb7 {[%clk 0:02:30.8]} 11.
h4 {[%clk 0:02:55.9]} 11... Qe7 {[%clk 0:02:21.2]} 12. Neg5 {[%clk 0:02:53]}
12... h6 {[%clk 0:02:19.2]} 13. Bh7+ {[%clk 0:02:52.7]} 13... Kh8 {[%clk
0:02:18.6]} 14. Be4 {[%clk 0:02:52.8]} 14... Bxe4 {[%clk 0:02:15.6]} 15. Nxe4
{[%clk 0:02:53.7]} 15... g6 {[%clk 0:02:13.2]} 16. g4 {[%clk 0:02:52.6]} 16...
Bg7 {[%clk 0:02:13.2]} 17. Qf4 {[%clk 0:02:25.1]} 17... Nf6 {[%clk 0:02:09.5]}
18. Nxf6 {[%clk 0:02:15.5]} 18... Qxf6 {[%clk 0:02:10.3]} 19. Qxf6 {[%clk
0:02:13.8]} 19... Bxf6 {[%clk 0:02:11.1]} 20. c3 {[%clk 0:02:11]} 20... Rad8
{[%clk 0:02:09.6]} 21. Kc2 {[%clk 0:02:09.8]} 21... Rd5 {[%clk 0:02:07.5]} 22.
Rd3 {[%clk 0:01:55.5]} 22... Rfd8 {[%clk 0:02:02.8]} 23. Rhd1 {[%clk 0:01:54.1]}
23... b5 {[%clk 0:01:52.4]} 24. a3 {[%clk 0:01:53.5]} 24... a5 {[%clk
0:01:51.8]} 25. R1d2 {[%clk 0:01:50.7]} 25... Kg7 {[%clk 0:01:51.4]} 26. Rd1
{[%clk 0:01:50.6]} 26... a4 {[%clk 0:01:46]} 27. R1d2 {[%clk 0:01:50.3]} 27...
h5 {[%clk 0:01:36.1]} 28. g5 {[%clk 0:01:50.3]} 28... Be7 {[%clk 0:01:36.5]} 29.
Ne5 {[%clk 0:01:46]} 29... Bd6 {[%clk 0:01:36.5]} 30. Nc6 {[%clk 0:01:45.6]}
30... Re8 {[%clk 0:01:30.9]} 31. Rf3 {[%clk 0:01:32.8]} 31... Rf5 {[%clk
0:01:27.7]} 32. Rdd3 {[%clk 0:01:28.6]} 32... Bf4 {[%clk 0:01:06.2]} 33. Nb4
{[%clk 0:01:00.2]} 33... f6 {[%clk 0:01:01]} 34. gxf6+ {[%clk 0:00:59.2]} 34...
Kxf6 {[%clk 0:01:00.4]} 35. Kd1 {[%clk 0:00:48.6]} 35... g5 {[%clk 0:00:39.1]}
36. hxg5+ {[%clk 0:00:49.5]} 36... Kxg5 {[%clk 0:00:40]} 37. d5 {[%clk
0:00:47.8]} 37... e5 {[%clk 0:00:37.8]} 38. Rh3 {[%clk 0:00:45.2]} 38... Kg4
{[%clk 0:00:29.9]} 39. Rh1 {[%clk 0:00:45]} 39... h4 {[%clk 0:00:26.3]} 40. d6
{[%clk 0:00:36.5]} 40... cxd6 {[%clk 0:00:23]} 41. Rxd6 {[%clk 0:00:36.7]} 41...
Kh5 {[%clk 0:00:19.9]} 42. Nd3 {[%clk 0:00:17.1]} 42... Bg5 {[%clk 0:00:20.1]}
43. Ke2 {[%clk 0:00:15.9]} 43... e4 {[%clk 0:00:19.5]} 44. Ne1 {[%clk
0:00:15.1]} 44... Ref8 {[%clk 0:00:19.3]} 45. Rf1 {[%clk 0:00:12.3]} 45... h3
{[%clk 0:00:19.5]} 46. Rd4 {[%clk 0:00:10.8]} 46... h2 {[%clk 0:00:14.9]} 47.
Rxe4 {[%clk 0:00:10.1]} 47... Rxf2+ {[%clk 0:00:14.9]} 48. Rxf2 {[%clk
0:00:10.6]} 48... Rxf2+ {[%clk 0:00:15.8]} 49. Kxf2 {[%clk 0:00:11.2]} 49...
h1=Q {[%clk 0:00:16.7]} 50. Nf3 {[%clk 0:00:08.9]} 50... Bf6 {[%clk 0:00:13.9]}
51. Ke3 {[%clk 0:00:05.2]} 51... Qb1 {[%clk 0:00:13.2]} 0-1

[Event "*** SCC Grand Prix: Titled Tuesday Blitz"]
[Site "Chess.com"]
[Date "2020.07.21"]
[Round "2"]
[White "luizwas"]
[Black "kasparicy"]
[Result "0-1"]
[WhiteElo "1765"]
[BlackElo "2345"]
[TimeControl "180+1"]
[EndTime "10:18:44 PDT"]
[Termination "kasparicy won by resignation"]

1. e4 {[%clk 0:03:00.9]} 1... c5 {[%clk 0:02:59.7]} 2. Nf3 {[%clk 0:03:00.9]}
2... d6 {[%clk 0:02:59.5]} 3. d4 {[%clk 0:03:01.1]} 3... cxd4 {[%clk 0:03:00.4]}
4. Nxd4 {[%clk 0:03:01.7]} 4... Nf6 {[%clk 0:03:01]} 5. Nc3 {[%clk 0:03:02]}
5... a6 {[%clk 0:03:01.9]} 6. h3 {[%clk 0:03:02]} 6... e6 {[%clk 0:03:00.9]} 7.
g4 {[%clk 0:03:01.8]} 7... b5 {[%clk 0:03:01.4]} 8. Bg2 {[%clk 0:03:01.7]} 8...
Bb7 {[%clk 0:03:01.8]} 9. O-O {[%clk 0:03:01.9]} 9... Nfd7 {[%clk 0:03:02.2]}
10. Re1 {[%clk 0:03:01.3]} 10... Be7 {[%clk 0:03:02.6]} 11. f4 {[%clk
0:02:56.1]} 11... O-O {[%clk 0:03:02.9]} 12. Be3 {[%clk 0:02:55.2]} 12... Qc7
{[%clk 0:03:00.4]} 13. Bf2 {[%clk 0:02:54.1]} 13... Nb6 {[%clk 0:02:57.2]} 14.
f5 {[%clk 0:02:49.2]} 14... e5 {[%clk 0:02:54.4]} 15. Nb3 {[%clk 0:02:34.8]}
15... Rd8 {[%clk 0:02:52]} 16. Kh1 {[%clk 0:02:23.1]} 16... b4 {[%clk
0:02:47.5]} 17. Bxb6 {[%clk 0:02:21.5]} 17... Qxb6 {[%clk 0:02:46.5]} 18. Nd5
{[%clk 0:02:22]} 18... Bxd5 {[%clk 0:02:46.9]} 19. Qxd5 {[%clk 0:02:22.9]} 19...
Nd7 {[%clk 0:02:41.3]} 20. Red1 {[%clk 0:02:17.4]} 20... Nf6 {[%clk 0:02:41.1]}
21. Qd3 {[%clk 0:02:12.9]} 21... h6 {[%clk 0:02:41]} 22. a3 {[%clk 0:02:09.6]}
22... bxa3 {[%clk 0:02:36]} 23. Rxa3 {[%clk 0:02:04.8]} 23... d5 {[%clk
0:02:33.2]} 24. exd5 {[%clk 0:02:05.1]} 24... Bxa3 {[%clk 0:02:33.2]} 25. bxa3
{[%clk 0:02:06]} 25... Rd6 {[%clk 0:02:24.3]} 26. c4 {[%clk 0:02:04.5]} 26...
Rc8 {[%clk 0:01:53.3]} 27. c5 {[%clk 0:01:58]} 27... Rxc5 {[%clk 0:01:52.6]} 28.
Nxc5 {[%clk 0:01:58.9]} 28... Qxc5 {[%clk 0:01:53.3]} 29. Bf3 {[%clk 0:01:42.7]}
29... Qf2 {[%clk 0:01:47.4]} 30. Qe2 {[%clk 0:01:37.8]} 30... Qg3 {[%clk
0:01:46.2]} 31. Qg2 {[%clk 0:01:36.9]} 31... Qf4 {[%clk 0:01:46.2]} 32. Re1
{[%clk 0:01:33.1]} 32... Rb6 {[%clk 0:01:36.2]} 33. Be2 {[%clk 0:01:03.7]} 33...
Rb3 {[%clk 0:01:16]} 34. Rf1 {[%clk 0:00:35.3]} 34... Qe3 {[%clk 0:01:13.6]} 35.
Rf3 {[%clk 0:00:28.2]} 35... Qc1+ {[%clk 0:00:54.5]} 36. Rf1 {[%clk 0:00:27.7]}
36... Qxa3 {[%clk 0:00:53.1]} 37. Kh2 {[%clk 0:00:19.1]} 37... e4 {[%clk
0:00:53]} 38. g5 {[%clk 0:00:15]} 38... Qd6+ {[%clk 0:00:48.1]} 39. Kh1 {[%clk
0:00:13.8]} 39... Rg3 {[%clk 0:00:33.5]} 40. Qh2 {[%clk 0:00:13.6]} 40... hxg5
{[%clk 0:00:27.3]} 41. Bxa6 {[%clk 0:00:13.4]} 41... e3 {[%clk 0:00:18.4]} 42.
Bc4 {[%clk 0:00:10.5]} 42... Ne4 {[%clk 0:00:17.3]} 43. Qe2 {[%clk 0:00:05.3]}
43... Nf2+ {[%clk 0:00:15.8]} 44. Rxf2 {[%clk 0:00:05.7]} 44... exf2 {[%clk
0:00:16.2]} 45. Qxf2 {[%clk 0:00:06.6]} 45... Rxh3+ {[%clk 0:00:15.6]} 46. Kg1
{[%clk 0:00:07.2]} 46... Rg3+ {[%clk 0:00:16]} 47. Kf1 {[%clk 0:00:06]} 47...
Rg4 {[%clk 0:00:16.3]} 48. Qe3 {[%clk 0:00:03.7]} 48... Rf4+ {[%clk 0:00:17.2]}
49. Ke2 {[%clk 0:00:03.8]} 49... Rxf5 {[%clk 0:00:17.5]} 50. Kd3 {[%clk
0:00:04]} 50... Re5 {[%clk 0:00:17.1]} 51. Qd4 {[%clk 0:00:04.1]} 51... Qg6+
{[%clk 0:00:16.6]} 52. Kc3 {[%clk 0:00:04]} 52... Qd6 {[%clk 0:00:17.1]} 53. Bd3
{[%clk 0:00:04]} 53... g6 {[%clk 0:00:16.9]} 54. Qa7 {[%clk 0:00:03]} 54... Rxd5
{[%clk 0:00:15.6]} 55. Qa8+ {[%clk 0:00:03.3]} 55... Kg7 {[%clk 0:00:15.7]} 56.
Bc4 {[%clk 0:00:03.7]} 56... Qe5+ {[%clk 0:00:14.8]} 57. Kb4 {[%clk 0:00:03.1]}
57... Rd4 {[%clk 0:00:15.3]} 58. Qa2 {[%clk 0:00:01.9]} 58... Qe6 {[%clk
0:00:14.4]} 59. Kc3 {[%clk 0:00:02.6]} 59... Qxc4+ {[%clk 0:00:15.1]} 60. Qxc4
{[%clk 0:00:02.6]} 60... Rxc4+ {[%clk 0:00:16]} 61. Kxc4 {[%clk 0:00:03.5]}
61... Kf6 {[%clk 0:00:16.4]} 62. Kd3 {[%clk 0:00:04.4]} 62... Kf5 {[%clk
0:00:17.3]} 63. Ke2 {[%clk 0:00:05.3]} 63... Kg4 {[%clk 0:00:17.8]} 64. Kf2
{[%clk 0:00:06.2]} 0-1